bitfinex-derivatives/quotes_BTCF0:USTF0_20251030
["timestamp","ask_amount","ask_price","bid_price","bid_amount"]
[1761805160909,0.22378278,110140.0,110130.0,2.06829278]
[1761805161799,0.22378278,110140.0,110130.0,1.90493]
[1761805161998,0.002,110140.0,110130.0,2.08096278]
[1761805162400,0.002,110140.0,110130.0,1.9176]
[1761805162600,0.002,110140.0,110130.0,2.08096278]
[1761805163324,0.04716,110140.0,110130.0,2.08096278]
[1761805163496,0.06042,110140.0,110130.0,2.08096278]
[1761805163899,0.04716,110140.0,110130.0,2.08096278]
[1761805164909,0.06042,110140.0,110130.0,1.9176]
[1761805165107,0.06042,110140.0,110130.0,2.08096278]
[1761805166000,0.04716,110140.0,110130.0,2.08096278]
[1761805166505,0.002,110140.0,110130.0,2.46175878]
[1761805166693,0.01326,110180.0,110130.0,2.79120434]
[1761805166898,0.07947491,110180.0,110170.0,0.56688278]
[1761805167114,0.05842,110180.0,110170.0,0.56688278]
[1761805168096,0.05942,110180.0,110170.0,0.56688278]
[1761805168410,0.05942,110180.0,110170.0,0.57610823]
[1761805168806,0.22178278,110180.0,110170.0,0.58110823]
[1761805169396,0.05842,110180.0,110170.0,0.58110823]
[1761805169591,0.22178278,110180.0,110170.0,0.58110823]
[1761805171396,0.05842,110180.0,110170.0,0.41774545]
[1761805171592,0.58241547,110180.0,110170.0,0.05694545]
[1761805171912,0.60345384,110180.0,110170.0,0.005]
[1761805172404,0.63617384,110180.0,110170.0,0.005]
[1761805172710,0.66063942,110180.0,110170.0,0.005]
[1761805173007,0.66063942,110180.0,110170.0,0.002]
[1761805173309,0.83952217,110180.0,110170.0,0.002]
[1761805174304,0.04516,110160.0,110150.0,0.39086116]
[1761805174506,0.04516,110160.0,110140.0,0.3608]
[1761805174507,0.02263,110150.0,110140.0,0.3608]
[1761805174804,0.07867054,110150.0,110140.0,0.40478]
[1761805176700,0.07867054,110150.0,110140.0,0.41375156]
[1761805177296,0.10313612,110150.0,110140.0,0.41375156]
[1761805179008,0.10313612,110150.0,110140.0,0.41675156]
[1761805179308,0.02107054,110150.0,110140.0,0.76547978]
[1761805179806,0.02107054,110150.0,110140.0,0.42340156]
[1761805180305,0.06602054,110150.0,110140.0,0.42340156]
[1761805180510,0.07867054,110150.0,110140.0,0.41675156]
[1761805181301,0.06602054,110150.0,110140.0,0.42340156]
[1761805181807,0.02107054,110150.0,110140.0,0.74016156]
[1761805182993,0.06602054,110150.0,110140.0,0.74016156]
[1761805183909,0.02107054,110150.0,110140.0,0.83094926]
[1761805184100,0.02107054,110150.0,110140.0,0.51418926]
[1761805184704,0.02107054,110150.0,110140.0,0.42340156]
[1761805185399,0.02107054,110150.0,110140.0,0.51418926]
[1761805185901,0.02107054,110150.0,110140.0,0.51690926]
[1761805186105,0.02107054,110150.0,110140.0,0.51418926]
[1761805186306,0.02107054,110150.0,110140.0,0.51690926]
[1761805186507,0.02446558,110170.0,110160.0,0.05427]
[1761805186696,0.02446558,110170.0,110160.0,1.11794822]
[1761805186898,0.11471903,110180.0,110170.0,0.04398]
[1761805187101,0.13582454,110180.0,110170.0,0.40478]
[1761805187296,0.06820109,110180.0,110170.0,0.41745]
[1761805187510,0.04557109,110180.0,110170.0,0.41745]
[1761805188104,0.10085454,110180.0,110170.0,0.41745]
[1761805188310,0.13582454,110180.0,110170.0,0.41745]
[1761805188910,0.10317109,110180.0,110170.0,0.41745]
[1761805189898,0.10317109,110180.0,110170.0,0.40478]
[1761805190100,0.11139437,110180.0,110170.0,0.04398]
[1761805192598,0.04495,110170.0,110160.0,0.40478]
[1761805192800,0.10317512,110170.0,110160.0,0.40478]
[1761805193902,0.10617512,110170.0,110160.0,0.40478]
[1761805194099,0.10617512,110170.0,110160.0,0.41507]
[1761805194299,0.10617512,110170.0,110160.0,0.40478]
[1761805195211,0.42381512,110170.0,110160.0,0.40478]
[1761805199209,0.45646857,110170.0,110160.0,0.40478]
[1761805199911,0.42381512,110170.0,110160.0,0.40478]
[1761805200212,0.43203437,110170.0,110160.0,0.40478]
[1761805202908,0.0576,110160.0,110150.0,0.40478]
[1761805203115,0.10322278,110160.0,110150.0,0.40478]
[1761805205514,0.47795445,110160.0,110150.0,0.40478]
[1761805206006,0.10522278,110160.0,110150.0,0.40478]
[1761805206603,0.09257278,110160.0,110150.0,0.41143]
[1761805206805,0.36422278,110160.0,110150.0,0.41143]
[1761805207012,0.34074092,110160.0,110150.0,0.41143]
[1761805207211,0.02414092,110160.0,110150.0,0.41143]
[1761805207406,0.04541092,110160.0,110150.0,0.41143]
[1761805207607,0.06932092,110160.0,110150.0,0.41143]
[1761805208112,0.09380278,110160.0,110150.0,0.41143]
[1761805209014,0.08980278,110160.0,110150.0,0.41143]
[1761805209313,0.09180278,110160.0,110150.0,0.41143]
[1761805209517,0.10455278,110160.0,110150.0,0.40478]
[1761805210213,0.10455278,110160.0,110150.0,0.41143]
[1761805210416,0.09180278,110160.0,110150.0,0.41143]
[1761805211315,0.10455278,110160.0,110150.0,0.41143]
[1761805211509,0.10455278,110160.0,110150.0,0.40478]
[1761805213701,0.10455278,110160.0,110150.0,0.41143]
[1761805213903,0.40836278,110160.0,110150.0,0.41143]
[1761805214308,0.42111278,110160.0,110150.0,0.41143]
[1761805214512,0.42111278,110160.0,110150.0,0.40478]
[1761805215913,0.5843568,110160.0,110150.0,0.40478]
[1761805216207,0.58436796,110160.0,110150.0,0.3608]
[1761805216412,0.59252839,110160.0,110150.0,0.3608]
[1761805216615,0.58436801,110160.0,110150.0,0.3608]
[1761805216820,0.58436801,110160.0,110150.0,0.40447]
[1761805217121,0.58436801,110160.0,110150.0,0.04367]
[1761805217316,0.61702146,110160.0,110150.0,0.04367]
[1761805217518,0.05617,110150.0,110140.0,0.38187]
[1761805217821,0.26504801,110150.0,110140.0,0.38187]
[1761805218519,0.26504801,110150.0,110140.0,0.40447]
[1761805218817,0.26504801,110150.0,110140.0,0.40547]
[1761805219216,0.10180399,110150.0,110140.0,0.40547]
[1761805219415,0.26504801,110150.0,110140.0,0.40547]
[1761805219616,0.26504801,110150.0,110140.0,0.04467]
[1761805219810,0.10180399,110150.0,110140.0,0.41448128]
[1761805220016,0.39387092,110150.0,110140.0,0.5903953]
[1761805220223,0.39387092,110150.0,110140.0,0.42715128]
[1761805220519,0.39387092,110150.0,110140.0,0.41448128]
[1761805221021,0.07731092,110150.0,110140.0,0.41348128]
[1761805221221,0.39387092,110150.0,110140.0,0.41348128]
[1761805222514,0.39587092,110150.0,110140.0,0.41348128]
[1761805224219,0.02314092,110150.0,110140.0,0.5893953]
[1761805224420,0.36066092,110150.0,110140.0,0.42615128]
[1761805224724,0.06656092,110150.0,110140.0,0.5893953]
[1761805225421,0.06656092,110150.0,110140.0,0.42615128]
[1761805225619,0.02314092,110150.0,110140.0,0.5893953]
[1761805227024,0.02114092,110150.0,110140.0,0.5893953]
[1761805227220,0.39718307,110160.0,110150.0,0.04367]
[1761805227521,0.58162758,110160.0,110150.0,0.40447]
[1761805228714,0.58262758,110160.0,110150.0,0.40447]
[1761805228918,0.42238356,110160.0,110150.0,0.40447]
[1761805229312,0.04969356,110160.0,110150.0,0.57436402]
[1761805229614,0.42238356,110160.0,110150.0,0.57436402]
[1761805229817,0.42238356,110160.0,110150.0,0.41112]
[1761805230010,0.10586356,110160.0,110150.0,0.41112]
[1761805230434,0.10586356,110160.0,110150.0,0.40447]
[1761805230924,0.10386356,110160.0,110150.0,0.40447]
[1761805231322,0.10386356,110160.0,110150.0,0.56770469]
[1761805231622,0.10186356,110160.0,110150.0,0.56770469]
[1761805232021,0.10186356,110160.0,110150.0,0.56870469]
[1761805232419,0.04569356,110160.0,110150.0,0.57535469]
[1761805232635,0.02120049,110160.0,110150.0,1.45856908]
[1761805232938,0.02120049,110160.0,110150.0,1.62180377]
[1761805233425,0.02120049,110160.0,110150.0,1.33602754]
[1761805234408,0.02120049,110160.0,110150.0,1.33330754]
[1761805235424,0.02120049,110160.0,110150.0,1.01682754]
[1761805235727,0.02120049,110160.0,110150.0,1.33330754]
[1761805236423,0.02120049,110160.0,110150.0,1.40575424]
[1761805238026,0.02120049,110160.0,110150.0,1.40847424]
[1761805238220,0.02449307,110180.0,110170.0,0.05282]
[1761805238414,0.02449307,110180.0,110170.0,1.29478784]
[1761805238615,0.04673307,110180.0,110170.0,1.29478784]
[1761805238925,0.0456637,110180.0,110170.0,1.38555084]
[1761805239125,0.02449307,110180.0,110170.0,1.29478784]
[1761805239725,0.02549307,110180.0,110170.0,1.29478784]
[1761805240022,0.0466637,110180.0,110170.0,1.29478784]
[1761805240720,0.02217063,110180.0,110170.0,1.49555094]
[1761805240928,0.02549307,110180.0,110170.0,2.28827094]
[1761805241126,0.02217063,110180.0,110170.0,1.68827094]
[1761805242430,0.02517063,110180.0,110170.0,1.68555094]
[1761805242634,0.02517063,110180.0,110170.0,1.68827094]
[1761805244123,0.02517063,110180.0,110170.0,2.28827094]
[1761805244327,6.3e-07,110180.0,110170.0,1.68827094]
[1761805245926,6.3e-07,110180.0,110170.0,1.77903563]
[1761805246635,0.02439176,110210.0,110200.0,0.1205983]
[1761805246830,0.02439176,110210.0,110200.0,1.85909398]
[1761805247326,0.03265345,110220.0,110210.0,0.0907301]
[1761805247516,0.03265345,110220.0,110210.0,0.96268044]
[1761805247719,0.03265345,110220.0,110210.0,0.95996044]
[1761805248228,0.10386363,110230.0,110220.0,0.02542]
[1761805248431,0.08162363,110230.0,110220.0,0.90646784]
[1761805248931,0.05666,110230.0,110220.0,0.70254]
[1761805251928,0.05666,110230.0,110220.0,0.38622]
[1761805252128,0.05666,110230.0,110220.0,0.70246]
[1761805253128,0.08931345,110230.0,110220.0,0.70246]
[1761805254533,0.13828363,110230.0,110220.0,0.70246]
[1761805254737,0.08931345,110230.0,110220.0,0.90638784]
[1761805255519,0.08931345,110230.0,110220.0,0.70246]
[1761805255724,0.08931345,110230.0,110220.0,0.90638784]
[1761805256139,0.05489345,110230.0,110220.0,0.71073]
[1761805256436,0.11034891,110230.0,110220.0,0.90638784]
[1761805257333,0.07592891,110230.0,110220.0,0.90638784]
[1761805257534,0.05368891,110230.0,110220.0,0.91465784]
[1761805257729,0.01302,110240.0,110230.0,0.01271]
[1761805257935,0.05666,110240.0,110230.0,0.59014784]
[1761805258132,0.07769199,110240.0,110230.0,0.59014784]
[1761805258331,0.07769199,110240.0,110230.0,0.38622]
[1761805258536,0.07769199,110240.0,110230.0,0.59014784]
[1761805258732,0.07769199,110240.0,110230.0,0.38622]
[1761805259132,0.05766,110240.0,110230.0,0.38622]
[1761805259440,0.05966,110240.0,110230.0,0.38622]
[1761805259934,0.05966,110240.0,110230.0,0.3608]
[1761805259935,0.26358784,110240.0,110230.0,0.3608]
[1761805260138,0.28459621,110240.0,110230.0,0.3608]
[1761805260436,0.28731621,110240.0,110230.0,0.3608]
[1761805260840,0.28459621,110240.0,110230.0,0.3608]
[1761805261337,0.05666,110230.0,110220.0,0.38622]
[1761805261636,0.05666,110220.0,110210.0,0.3608]
[1761805261842,0.03442,110200.0,110180.0,0.36091407]
[1761805262047,0.05666,110190.0,110180.0,0.39522407]
[1761805262934,0.05566,110190.0,110180.0,0.39522407]
[1761805265639,0.05566,110190.0,110180.0,0.36980407]
[1761805266041,0.05566,110190.0,110180.0,0.38351407]
[1761805266736,0.05566,110190.0,110180.0,0.39722407]
[1761805267646,0.25958784,110190.0,110180.0,0.02271407]
[1761805267943,0.85958784,110190.0,110180.0,0.00011407]
[1761805268137,0.26058784,110190.0,110180.0,0.00011407]
[1761805268340,0.26330784,110190.0,110180.0,0.00011407]
[1761805268649,0.05871,110180.0,110170.0,0.3608]
[1761805268946,0.05871,110180.0,110130.0,1.5]
[1761805268947,0.05871,110140.0,110130.0,1.8608]
[1761805269151,0.73567,110150.0,110140.0,0.02764]
[1761805269338,0.03637,110150.0,110140.0,0.59236784]
[1761805269644,0.05882756,110150.0,110140.0,0.38844]
[1761805269845,0.41962756,110150.0,110140.0,0.02764]
[1761805271139,0.05871,110140.0,110130.0,1.87602266]
[1761805271848,0.05071,110140.0,110130.0,1.87002266]
[1761805272350,0.05071,110140.0,110130.0,1.87402266]
[1761805274048,0.36691,110140.0,110130.0,1.51322266]
[1761805274242,0.36691,110140.0,110090.0,0.40451773]
[1761805274243,0.05553,110100.0,110090.0,0.40451773]
[1761805274443,0.05353,110100.0,110090.0,0.05269886]
[1761805274641,0.0536218,110100.0,110090.0,1.91349886]
[1761805274842,0.0536218,110100.0,110090.0,1.55269886]
[1761805275550,0.0536218,110100.0,110090.0,1.54871773]
[1761805276350,0.0536218,110100.0,110090.0,1.5576229]
[1761805276850,0.61834964,110100.0,110090.0,0.00507773]
[1761805277049,0.4144218,110100.0,110090.0,0.00507773]
[1761805277245,0.4144218,110100.0,110090.0,7.773e-05]
[1761805278051,0.4194218,110100.0,110090.0,7.773e-05]
[1761805279153,0.0243718,110100.0,110090.0,0.60996557]
[1761805280049,0.0050918,110100.0,110090.0,0.60996557]
[1761805281246,0.0040918,110100.0,110090.0,0.61096557]
[1761805281445,9.18e-05,110100.0,110090.0,0.61096557]
[1761805281646,0.0020918,110100.0,110090.0,0.61096557]
[1761805282656,0.0233718,110100.0,110090.0,0.61096557]
[1761805283049,0.0444718,110100.0,110090.0,0.61096557]
[1761805284061,0.0020918,110100.0,110090.0,0.61096557]
[1761805284358,0.0444718,110100.0,110090.0,0.61096557]
[1761805285857,0.0444718,110100.0,110090.0,0.00107773]
[1761805286257,0.0444718,110100.0,110090.0,0.02332773]
[1761805286453,0.0576218,110100.0,110090.0,0.04623773]
[1761805287456,0.0576218,110100.0,110090.0,0.25016557]
[1761805287644,0.0576218,110100.0,110090.0,0.61096557]
[1761805289662,0.3741018,110100.0,110090.0,0.40703773]
[1761805289862,0.3741018,110100.0,110090.0,0.61096557]
[1761805290370,0.0576218,110100.0,110090.0,0.61096557]
[1761805291455,0.0576218,110100.0,110090.0,0.40703773]
[1761805292252,0.4184218,110100.0,110090.0,0.04623773]
[1761805293650,0.0020918,110100.0,110090.0,0.88383556]
[1761805293860,0.0020918,110100.0,110090.0,1.16106466]
[1761805294169,0.0020918,110100.0,110090.0,1.07023556]
[1761805294346,0.0020918,110100.0,110090.0,1.16106466]
[1761805294550,0.0020918,110100.0,110090.0,1.28106466]
[1761805295458,0.35083,110120.0,110110.0,0.04433]
[1761805295653,0.37215,110120.0,110110.0,0.04433]
[1761805295860,0.05575,110120.0,110110.0,0.40513]
[1761805296871,0.05675,110120.0,110110.0,0.40513]
[1761805297758,0.06175,110120.0,110110.0,0.40513]
[1761805298160,0.006,110120.0,110110.0,0.97240043]
[1761805298375,0.37395,110140.0,110110.0,1.44880043]
[1761805298376,0.69035,110140.0,110110.0,1.44880043]
[1761805298560,0.7327,110140.0,110130.0,0.04537]
[1761805298766,0.4163,110140.0,110130.0,0.04537]
[1761805299066,0.02103,110140.0,110130.0,0.74852783]
[1761805299267,0.37395,110150.0,110130.0,0.41061]
[1761805299473,0.43754378,110150.0,110140.0,0.04537]
[1761805299967,0.07674378,110150.0,110140.0,0.04537]
[1761805300174,0.02124378,110150.0,110140.0,0.75352783]
[1761805300368,0.02124378,110150.0,110140.0,0.85362076]
[1761805300771,0.41597,110170.0,110160.0,0.04537]
[1761805300961,0.73261,110170.0,110160.0,0.04537]
[1761805302060,0.37181,110170.0,110160.0,0.04537]
[1761805302266,0.73461,110170.0,110160.0,0.04537]
[1761805302462,0.37381,110170.0,110160.0,0.04537]
[1761805303278,0.73461,110170.0,110160.0,0.04537]
[1761805303474,0.37381,110170.0,110160.0,0.04537]
[1761805303679,0.37181,110170.0,110160.0,0.04537]
[1761805305178,0.69026,110170.0,110140.0,0.37010503]
[1761805305373,0.04235,110150.0,110140.0,0.73195503]
[1761805307094,0.04235,110150.0,110140.0,0.41547503]
[1761805308388,0.04235,110150.0,110140.0,0.41647503]
[1761805308591,0.05517,110150.0,110140.0,0.41647503]
[1761805309089,0.05517,110150.0,110140.0,0.41547503]
[1761805310189,0.37157,110150.0,110140.0,0.41547503]
[1761805312786,0.392748,110150.0,110140.0,0.41547503]
[1761805313095,0.063528,110150.0,110140.0,0.76283286]
[1761805313388,0.076348,110150.0,110140.0,0.41547503]
[1761805316399,0.076348,110150.0,110140.0,0.41647503]
[1761805316799,0.076348,110150.0,110140.0,0.41547503]
[1761805319092,0.021178,110150.0,110140.0,1.18362066]
[1761805319295,0.05827121,110170.0,110160.0,0.04537]
[1761805319601,0.06663978,110170.0,110160.0,0.40917]
[1761805319903,0.04560978,110170.0,110160.0,0.84229913]
[1761805320097,0.02118857,110170.0,110160.0,1.31309913]
[1761805320303,0.02118857,110170.0,110160.0,1.20309913]
[1761805320695,0.02318857,110170.0,110160.0,1.20309913]
[1761805321205,0.02318857,110170.0,110160.0,1.11232783]
[1761805321702,0.02318857,110170.0,110160.0,0.76997]
[1761805321890,0.02418857,110170.0,110160.0,0.76997]
[1761805324600,0.06647857,110170.0,110160.0,0.76997]
[1761805325298,0.02418857,110170.0,110160.0,0.76997]
[1761805326510,0.02418857,110170.0,110160.0,1.49309913]
[1761805326696,0.02418857,110170.0,110160.0,2.09581913]
[1761805327100,0.05707466,110190.0,110180.0,0.04968]
[1761805327407,0.05707466,110190.0,110180.0,1.06911783]
[1761805327705,0.02442121,110190.0,110180.0,1.06911783]
[1761805329995,0.02442121,110190.0,110180.0,1.27987263]
[1761805330313,0.03265345,110200.0,110190.0,0.05606]
[1761805330314,0.02442121,110200.0,110190.0,0.05606]
[1761805330610,0.02442121,110200.0,110190.0,0.75921783]
[1761805331910,0.02542121,110200.0,110190.0,0.75921783]
[1761805332911,0.02642121,110200.0,110190.0,0.75921783]
[1761805333109,0.002,110200.0,110190.0,0.75921783]
[1761805336011,0.04501,110200.0,110190.0,0.75921783]
[1761805336211,0.02366,110200.0,110190.0,0.75921783]
[1761805337409,0.02366,110200.0,110190.0,0.74783783]
[1761805337610,0.05583,110190.0,110180.0,0.72041]
[1761805337810,0.05583,110190.0,110180.0,0.40425]
[1761805338014,0.05783,110200.0,110190.0,0.04345]
[1761805338208,0.05783,110200.0,110190.0,0.40425]
[1761805338809,0.05683,110200.0,110190.0,0.40425]
[1761805339005,0.05583,110200.0,110190.0,0.40425]
[1761805339623,0.05783,110200.0,110190.0,0.40425]
[1761805344022,0.002,110200.0,110190.0,0.40925]
[1761805344225,0.002,110200.0,110190.0,0.84235443]
[1761805344713,0.002,110200.0,110190.0,0.75160783]
[1761805345315,0.002,110200.0,110190.0,0.40925]
[1761805345515,0.002,110200.0,110190.0,0.75160783]
[1761805347216,0.002,110200.0,110190.0,0.95235453]
[1761805347829,0.002,110200.0,110190.0,0.84235453]
[1761805348226,0.002,110200.0,110190.0,0.95235453]
[1761805348930,0.002,110200.0,110190.0,0.86160783]
[1761805349129,0.02366,110200.0,110190.0,0.75160783]
[1761805349428,0.04501,110200.0,110190.0,0.75160783]
[1761805349726,0.002,110200.0,110190.0,0.75160783]
[1761805350026,0.02366,110200.0,110190.0,0.75160783]
[1761805350620,0.002,110200.0,110190.0,0.88160783]
[1761805350821,0.002,110200.0,110190.0,0.75160783]
[1761805351424,0.002,110200.0,110190.0,0.613102]
[1761805351715,0.002,110200.0,110190.0,0.8338485]
[1761805351920,0.002,110200.0,110190.0,0.8365685]
[1761805352122,0.002,110200.0,110190.0,1.4338485]
[1761805353923,0.002,110200.0,110190.0,0.9865685]
[1761805354231,0.002,110200.0,110190.0,0.9838485]
[1761805354429,0.002,110200.0,110190.0,1.05527444]
[1761805356529,0.0214,110230.0,110220.0,0.05527]
[1761805356837,0.0214,110230.0,110220.0,0.936042]
[1761805356838,0.02101998,110230.0,110220.0,0.936042]
[1761805357234,0.02101998,110230.0,110220.0,1.056042]
[1761805357430,0.02101998,110230.0,110220.0,1.1467635]
[1761805357634,0.02101998,110230.0,110220.0,0.94569673]
[1761805357934,0.02601998,110230.0,110220.0,0.94569673]
[1761805358129,0.07383998,110230.0,110220.0,0.94569673]
[1761805362030,0.03001998,110230.0,110220.0,0.94569673]
[1761805362743,0.08765998,110230.0,110220.0,0.94569673]
[1761805363244,0.07383998,110230.0,110220.0,0.94569673]
[1761805364045,0.03001998,110230.0,110220.0,0.94569673]
[1761805364846,0.08765998,110230.0,110220.0,0.93431673]
[1761805365349,0.08762272,110230.0,110220.0,0.93431673]
[1761805365650,0.009,110230.0,110220.0,0.94569673]
[1761805365944,0.009,110230.0,110220.0,1.16641853]
[1761805366347,0.009,110230.0,110220.0,1.35641853]
[1761805366546,0.009,110230.0,110220.0,0.94569673]
[1761805366748,0.07379901,110230.0,110220.0,0.94569673]
[1761805367138,0.07379901,110230.0,110220.0,0.62957673]
[1761805367448,0.08761901,110230.0,110220.0,0.94561673]
[1761805368148,0.08761901,110230.0,110220.0,0.93419673]
[1761805368541,0.08761901,110230.0,110220.0,0.61819673]
[1761805368750,0.08761901,110230.0,110220.0,0.93419673]
[1761805369545,0.08761901,110230.0,110220.0,0.73034473]
[1761805369849,0.08761901,110230.0,110220.0,0.05354473]
[1761805370050,0.08761901,110230.0,110220.0,0.36954473]
[1761805371249,0.08761901,110230.0,110220.0,0.57339673]
[1761805371455,0.08761901,110230.0,110220.0,0.93419673]
[1761805375945,0.08761901,110230.0,110220.0,0.73034473]
[1761805378462,0.08261901,110230.0,110220.0,0.73034473]
[1761805378661,0.07861901,110230.0,110220.0,0.73434473]
[1761805379157,0.07861901,110230.0,110220.0,0.73234473]
[1761805379657,0.07861901,110230.0,110220.0,0.73134473]
[1761805380151,0.07861901,110230.0,110220.0,0.73034473]
[1761805380349,0.07861901,110230.0,110220.0,0.73334473]
[1761805380553,0.07861901,110230.0,110220.0,0.93719673]
[1761805380859,0.02097901,110230.0,110220.0,0.94857673]
[1761805381056,0.02097901,110230.0,110220.0,1.15929853]
[1761805381454,0.02097901,110230.0,110220.0,1.28140093]
[1761805381651,0.02097901,110230.0,110220.0,1.27840093]
[1761805381859,0.02097901,110230.0,110220.0,1.28040093]
[1761805382262,0.07861901,110230.0,110220.0,1.06029913]
[1761805383151,0.02097901,110230.0,110220.0,1.32537813]
[1761805383461,0.05664,110250.0,110240.0,0.04389]
[1761805383665,0.05664,110250.0,110240.0,0.6902044]
[1761805383666,0.0214,110250.0,110240.0,0.6902044]
[1761805383856,0.47550978,110260.0,110250.0,0.04389]
[1761805384056,0.47550978,110260.0,110250.0,0.2068672]
[1761805384259,0.45109345,110260.0,110250.0,0.2068672]
[1761805384753,0.47555226,110260.0,110250.0,0.2068672]
[1761805385154,0.44289881,110260.0,110250.0,0.2068672]
[1761805385356,0.44289881,110260.0,110250.0,0.04389]
[1761805386165,0.42244,110260.0,110250.0,0.24756551]
[1761805386347,0.42244,110260.0,110250.0,0.25056551]
[1761805386348,0.04782,110260.0,110250.0,0.25056551]
[1761805386670,0.004,110260.0,110250.0,0.63126261]
[1761805386855,0.004,110260.0,110250.0,0.99206261]
[1761805387362,0.04867,110260.0,110250.0,0.61136551]
[1761805387965,0.004,110260.0,110250.0,0.98206261]
[1761805388266,0.004,110260.0,110250.0,0.98478261]
[1761805388467,0.004,110260.0,110250.0,2.48478261]
[1761805388763,0.03829792,110280.0,110250.0,2.48478261]
[1761805388764,0.06914792,110280.0,110270.0,0.05105]
[1761805388959,0.06914792,110280.0,110270.0,0.93140551]
[1761805389550,0.04681792,110280.0,110270.0,0.93140551]
[1761805389750,0.02447792,110280.0,110270.0,0.93140551]
[1761805390359,0.11562137,110290.0,110280.0,0.04605]
[1761805390557,0.11562137,110290.0,110280.0,0.24972551]
[1761805390558,0.08296792,110290.0,110280.0,0.24972551]
[1761805391263,0.04467,110280.0,110270.0,0.38386]
[1761805391452,0.08192792,110280.0,110270.0,0.36193]
[1761805392259,0.05745,110280.0,110270.0,0.36193]
[1761805393751,0.05745,110280.0,110270.0,0.04605]
[1761805393968,0.05734,110270.0,110260.0,0.40551]
[1761805394353,0.05734,110270.0,110260.0,0.72135]
[1761805394658,0.05734,110260.0,110250.0,2.1796]
[1761805395049,0.05734,110260.0,110250.0,2.38327551]
[1761805395254,0.07818551,110260.0,110250.0,2.38027551]
[1761805395863,0.07818551,110260.0,110250.0,2.38327551]
[1761805396066,0.07818551,110260.0,110250.0,2.39298074]
[1761805397754,0.04399551,110260.0,110250.0,2.39398074]
[1761805397950,0.07818551,110260.0,110250.0,2.39398074]
[1761805398568,0.07818551,110260.0,110250.0,1.82850523]
[1761805398960,0.07818551,110260.0,110250.0,1.82550523]
[1761805399163,0.07818551,110260.0,110250.0,1.82750523]
[1761805399867,0.07818551,110260.0,110250.0,1.51270523]
[1761805400069,0.07818551,110260.0,110250.0,1.51370523]
[1761805401963,0.07818551,110260.0,110250.0,1.51270523]
[1761805402670,0.07818551,110260.0,110250.0,1.51170523]
[1761805404672,0.07818551,110260.0,110250.0,1.50970523]
[1761805404861,0.07818551,110260.0,110250.0,1.51070523]
[1761805405062,0.07918551,110260.0,110250.0,1.51070523]
[1761805405770,0.07818551,110260.0,110250.0,1.51070523]
[1761805405970,0.07918551,110260.0,110250.0,1.51070523]
[1761805408569,0.06647551,110260.0,110250.0,1.51514523]
[1761805408767,0.04499551,110260.0,110250.0,1.71882074]
[1761805409073,0.02184551,110260.0,110250.0,2.07962074]
[1761805409277,0.02184551,110260.0,110250.0,2.20176193]
[1761805410771,0.02184551,110260.0,110250.0,2.31176193]
[1761805410970,0.02184551,110260.0,110250.0,2.20176193]
[1761805411172,0.001,110260.0,110250.0,2.47176193]
[1761805413084,0.001,110260.0,110250.0,2.47376193]
[1761805413276,0.001,110260.0,110250.0,2.04084653]
[1761805413480,0.001,110260.0,110250.0,2.20374783]
[1761805414065,0.001,110260.0,110250.0,2.04084653]
[1761805414365,0.75844792,110280.0,110270.0,0.04471]
[1761805414695,0.77933702,110280.0,110270.0,0.04471]
[1761805416485,0.94223832,110280.0,110270.0,0.04471]
[1761805417372,0.0349,110270.0,110260.0,0.36081]
[1761805417580,0.0770891,110270.0,110260.0,0.04509]
[1761805419988,0.0770891,110270.0,110260.0,0.2079913]
[1761805420173,0.0780891,110270.0,110260.0,0.2079913]
[1761805420883,0.0780891,110270.0,110260.0,0.5687913]
[1761805421092,0.0431891,110270.0,110260.0,0.5801713]
[1761805421790,0.0654191,110270.0,110260.0,0.5801713]
[1761805422688,0.0780891,110270.0,110260.0,0.5687913]
[1761805423387,0.0780891,110270.0,110260.0,0.40589]
[1761805425488,0.0780891,110270.0,110260.0,0.5687913]
[1761805426076,0.0654191,110270.0,110260.0,0.5801713]
[1761805426282,0.0218891,110270.0,110260.0,0.5801713]
[1761805426886,0.0218891,110270.0,110260.0,0.9308601]
[1761805430185,0.0218891,110270.0,110260.0,0.9335801]
[1761805430391,0.0218891,110270.0,110260.0,0.9375801]
[1761805431489,0.0218891,110270.0,110260.0,0.9348601]
[1761805431792,0.0208891,110270.0,110260.0,0.9348601]
[1761805431985,0.0208891,110270.0,110260.0,0.9395801]
[1761805432188,0.0208891,110270.0,110260.0,0.9368601]
[1761805432387,0.0208891,110270.0,110260.0,0.9395801]
[1761805432788,0.0208891,110270.0,110260.0,0.9368601]
[1761805434393,0.0421891,110270.0,110260.0,0.7739588]
[1761805434578,0.0644191,110270.0,110260.0,0.9368601]
[1761805436398,0.0644191,110270.0,110260.0,0.9348601]
[1761805436597,0.0644191,110270.0,110260.0,0.9368601]
[1761805436792,0.0644191,110270.0,110260.0,0.9328601]
[1761805436994,0.0421891,110270.0,110260.0,0.9368601]
[1761805437400,0.0644191,110270.0,110260.0,1.2484601]
[1761805437690,0.0770891,110270.0,110260.0,0.8903913]
[1761805437904,0.0770891,110270.0,110260.0,1.2310802]
[1761805438299,0.0208891,110270.0,110260.0,1.2424602]
[1761805438603,0.0421891,110270.0,110260.0,1.2424602]
[1761805439294,0.0208891,110270.0,110260.0,1.2424602]
[1761805439496,0.0208891,110270.0,110260.0,1.2404602]
[1761805439693,0.0208891,110270.0,110260.0,1.2424602]
[1761805440492,0.0770891,110270.0,110260.0,1.2310402]
[1761805441204,0.0421891,110270.0,110260.0,1.2424202]
[1761805441391,0.0208891,110270.0,110260.0,0.9268602]
[1761805441794,0.0421891,110270.0,110260.0,1.2423802]
[1761805443101,0.0644191,110270.0,110260.0,1.0116913]
[1761805443305,0.0644191,110270.0,110260.0,1.2623801]
[1761805443500,0.0644191,110270.0,110260.0,1.2323801]
[1761805443695,0.0208891,110270.0,110260.0,1.2323801]
[1761805444006,0.0208891,110270.0,110260.0,1.2283801]
[1761805444199,0.0208891,110270.0,110260.0,1.2323801]
[1761805450311,0.04647345,110290.0,110270.0,0.0906726]
[1761805450312,0.05713137,110290.0,110270.0,0.0906726]
[1761805450517,0.02447792,110290.0,110280.0,0.6897126]
[1761805450702,0.02447792,110290.0,110280.0,0.6174837]
[1761805451508,0.04709792,110290.0,110280.0,0.6174837]
[1761805451709,0.06810792,110290.0,110280.0,0.5268113]
[1761805452908,0.02447792,110290.0,110280.0,1.2982837]
[1761805453208,0.04709792,110290.0,110280.0,0.8896113]
[1761805453417,0.08163792,110290.0,110280.0,0.40823]
[1761805453613,0.08163792,110290.0,110280.0,0.8865713]